bitfinex-derivatives/quotes_BTCF0:USTF0_20250106
["timestamp","ask_amount","ask_price","bid_price","bid_amount"]
[1736156768912,0.3608,99130.0,99115.0,0.65068467]
[1736156769222,0.411253,99137.0,99136.0,0.050453]
[1736156769417,0.3608,99137.0,99136.0,0.050453]
[1736156769729,0.0316,99142.0,99141.0,0.05045]
[1736156770612,0.050446,99149.0,99148.0,0.050446]
[1736156772220,0.052446,99149.0,99148.0,0.050446]
[1736156772719,0.058446,99149.0,99148.0,0.051446]
[1736156780923,0.008,99149.0,99148.0,0.051446]
[1736156786326,0.058446,99149.0,99148.0,0.051446]
[1736156786827,0.055446,99149.0,99148.0,0.050446]
[1736156787520,0.056446,99149.0,99148.0,0.050446]
[1736156787720,0.050449,99145.0,99138.0,0.18066829]
[1736156787916,0.050451,99139.0,99138.0,0.18066829]
[1736156788336,0.050451,99139.0,99135.0,0.24089106]
[1736156788625,0.050453,99136.0,99135.0,0.24089106]
[1736156790028,0.0312,99136.0,99134.0,0.050454]
[1736156790228,0.050456,99131.0,99130.0,0.050456]
[1736156790425,0.411256,99131.0,99130.0,0.050456]
[1736156791432,0.411256,99131.0,99130.0,0.052456]
[1736156793433,0.411256,99131.0,99130.0,0.053456]
[1736156793733,0.411256,99131.0,99130.0,0.054456]
[1736156799229,0.42158698,99131.0,99130.0,0.054456]
[1736156799836,0.411256,99131.0,99130.0,0.054456]
[1736156807742,0.411256,99131.0,99130.0,0.004]
[1736156810250,0.411256,99131.0,99130.0,0.001]
[1736156810452,0.411256,99131.0,99130.0,0.003]
[1736156811355,0.411256,99131.0,99130.0,0.053456]
[1736156811540,0.050456,99131.0,99130.0,0.053456]
[1736156823955,0.050456,99131.0,99130.0,0.003]
[1736156829766,0.050456,99131.0,99130.0,0.18453683]
[1736156831270,0.050456,99131.0,99130.0,0.003]
[1736156833971,0.050456,99131.0,99130.0,0.18453683]
[1736156839181,0.050456,99131.0,99130.0,0.003]
[1736156847485,0.050456,99131.0,99130.0,0.18448239]
[1736156849983,0.050456,99131.0,99130.0,0.003]
[1736156852889,0.20160656,99131.0,99130.0,0.003]
[1736156854089,0.050456,99131.0,99130.0,0.003]
[1736156855579,0.050456,99131.0,99125.0,0.24211816]
[1736156855785,0.050463,99117.0,99116.0,0.30153312]
[1736156856092,0.411263,99117.0,99116.0,0.30153312]
[1736156857188,0.050468,99107.0,99106.0,0.30304655]
[1736156857390,0.411268,99107.0,99106.0,0.30304655]
[1736156858786,0.411268,99107.0,99106.0,0.00151343]
[1736156859189,0.411268,99107.0,99103.0,0.30153312]
[1736156859390,0.050469,99104.0,99103.0,0.30153312]
[1736156860394,0.050473,99097.0,99096.0,0.30153312]
[1736156861894,0.050474,99094.0,99093.0,0.0315]
[1736156862096,0.411274,99094.0,99093.0,0.0315]
[1736156863185,0.3608,99094.0,99089.0,0.050477]
[1736156863384,0.050476,99090.0,99089.0,0.050477]
[1736156864694,0.050476,99090.0,99089.0,0.053477]
[1736156884807,0.050476,99090.0,99089.0,0.681739]
[1736156886211,0.050476,99090.0,99089.0,0.38020588]
[1736156891306,0.14107865,99090.0,99089.0,0.38020588]
[1736156895322,0.050476,99090.0,99089.0,0.38020588]
[1736156896715,0.050476,99090.0,99089.0,0.74280363]
[1736156902119,0.09060265,99093.0,99092.0,0.050475]
[1736156903314,0.09060265,99093.0,99092.0,0.052475]
[1736156903819,0.050474,99094.0,99092.0,0.32872888]
[1736156904017,0.050474,99094.0,99093.0,0.050475]
[1736156905122,0.050474,99094.0,99093.0,0.37720388]
[1736156907209,0.050474,99094.0,99093.0,0.37920388]
[1736156910322,0.050474,99094.0,99093.0,0.37820388]
[1736156910721,0.050474,99094.0,99093.0,0.37720388]
[1736156910922,0.052474,99094.0,99093.0,0.37720388]
[1736156911315,0.054474,99094.0,99093.0,0.37720388]
[1736156922430,0.415274,99094.0,99093.0,0.35340588]
[1736156923926,0.415274,99094.0,99093.0,0.050475]
[1736156924832,0.39442001,99102.0,99093.0,0.411275]
[1736156925027,0.15123376,99105.0,99104.0,0.050469]
[1736156925235,0.15123376,99106.0,99104.0,0.29]
[1736156925534,0.15123376,99106.0,99105.0,0.050469]
[1736156926334,0.15123376,99106.0,99105.0,0.06624534]
[1736156926636,0.09068149,99114.0,99113.0,0.050465]
[1736156926836,0.09068149,99114.0,99113.0,0.06624134]
[1736156927934,0.3608,99115.0,99113.0,0.01577634]
[1736156928240,0.3608,99115.0,99114.0,0.050464]
[1736156928531,0.3608,99115.0,99114.0,0.06624034]
[1736156929533,0.3608,99115.0,99114.0,0.050464]
[1736156929837,0.3608,99115.0,99114.0,0.051464]
[1736156930228,0.3608,99115.0,99114.0,0.06723999]
[1736156930635,0.3608,99115.0,99114.0,0.06823999]
[1736156931432,0.3608,99115.0,99114.0,0.29423809]
[1736156932837,0.3608,99115.0,99114.0,0.052464]
[1736156943543,0.3608,99115.0,99114.0,0.06824006]
[1736156943753,0.411264,99115.0,99114.0,0.06824006]
[1736156950654,0.411264,99115.0,99111.0,0.19187409]
[1736156950956,0.411264,99115.0,99112.0,0.19187409]
[1736156951158,0.411264,99115.0,99114.0,0.050464]
[1736156953552,0.411264,99115.0,99114.0,0.051464]
[1736156955261,0.411264,99115.0,99114.0,0.341464]
[1736156956850,0.411264,99115.0,99114.0,0.38003563]
[1736156960155,0.411264,99115.0,99114.0,0.32957163]
[1736156961565,0.411264,99115.0,99114.0,0.001]
[1736156963170,0.411264,99115.0,99114.0,0.01677711]
[1736156966572,0.411264,99115.0,99114.0,0.001]
[1736156966972,0.050467,99109.0,99108.0,0.30345858]
[1736156967167,0.050467,99109.0,99108.0,0.26873691]
[1736156967474,0.050471,99100.0,99099.0,0.36259775]
[1736156967670,0.411271,99100.0,99099.0,0.36259775]
[1736156968977,0.411271,99100.0,99094.0,0.050474]
[1736156968978,0.3608,99100.0,99094.0,0.050474]
[1736156969177,0.050474,99095.0,99094.0,0.050474]
[1736156970280,0.050475,99092.0,99088.0,0.050477]
[1736156972681,0.050475,99092.0,99082.0,0.07745289]
[1736156972682,0.050475,99092.0,99089.0,0.050477]
[1736156973077,0.052475,99092.0,99089.0,0.050477]
[1736156973577,0.054475,99092.0,99089.0,0.050477]
[1736156973986,0.054475,99092.0,99082.0,0.08734052]
[1736156973987,0.054475,99092.0,99090.0,0.050476]
[1736156974486,0.14494208,99092.0,99090.0,0.050476]
[1736156975785,0.054475,99092.0,99090.0,0.050476]
[1736156978189,0.054475,99092.0,99089.0,0.050477]
[1736156978488,0.054475,99092.0,99091.0,0.18272564]
[1736156979885,0.054475,99092.0,99091.0,0.00151366]
[1736156981883,0.054475,99092.0,99091.0,0.05198966]
[1736156982487,0.054475,99092.0,99091.0,0.00151366]
[1736156987787,0.415275,99092.0,99091.0,0.00151366]
[1736156989794,0.14494208,99092.0,99091.0,0.00151366]
[1736156989995,0.50574208,99092.0,99091.0,0.00151366]
[1736156991791,0.50574208,99092.0,99091.0,0.05198966]
[1736156992693,0.415275,99092.0,99091.0,0.05198966]
[1736156996197,0.3648,99092.0,99091.0,0.05198966]
[1736156997502,0.3648,99092.0,99091.0,0.06206833]
[1736156997895,0.12051412,99098.0,99097.0,0.050473]
[1736156998100,0.15123376,99104.0,99097.0,0.050473]
[1736156998492,0.15123376,99104.0,99098.0,0.3608]
[1736156998695,0.15123376,99104.0,99097.0,0.050473]
[1736156998903,0.20170276,99104.0,99103.0,0.05047]
[1736156999304,0.050469,99104.0,99103.0,0.05047]
[1736156999499,0.050469,99104.0,99103.0,0.34047]
[1736157000095,0.050469,99104.0,99103.0,0.05047]
[1736157000300,0.052469,99104.0,99103.0,0.05047]
[1736157000500,0.055469,99104.0,99103.0,0.05047]
[1736157000697,0.14604209,99104.0,99103.0,0.05047]
[1736157000892,0.14404209,99104.0,99103.0,0.05047]
[1736157001100,0.14404209,99104.0,99103.0,0.05147]
[1736157002007,0.14404209,99104.0,99103.0,0.001]
[1736157002200,0.14104209,99104.0,99103.0,0.001]
[1736157002398,0.050469,99104.0,99103.0,0.001]
[1736157002605,0.050473,99096.0,99095.0,0.050474]
[1736157002901,0.411273,99096.0,99095.0,0.050474]
[1736157004202,0.50182055,99096.0,99095.0,0.050474]
[1736157005006,0.50182055,99096.0,99095.0,0.340474]
[1736157005407,0.50482055,99096.0,99095.0,0.050474]
[1736157005611,0.414273,99096.0,99095.0,0.050474]
[1736157005805,0.416273,99096.0,99095.0,0.050474]
[1736157009396,0.50682055,99096.0,99095.0,0.050474]
[1736157012404,0.50682055,99096.0,99095.0,0.29240551]
[1736157013512,0.416273,99096.0,99095.0,0.050474]
[1736157015203,0.416273,99096.0,99093.0,0.24193151]
[1736157015204,0.050474,99094.0,99093.0,0.24193151]
[1736157016414,0.050476,99090.0,99089.0,0.24193151]
[1736157017813,0.050477,99088.0,99087.0,0.18148949]
[1736157018015,0.411277,99088.0,99087.0,0.18148949]
[1736157018907,0.050478,99086.0,99085.0,0.050479]
[1736157019307,0.050478,99086.0,99085.0,0.29241051]
[1736157020312,0.050478,99086.0,99085.0,0.29741051]
[1736157021021,0.050478,99086.0,99085.0,0.29941051]
[1736157030022,0.050478,99086.0,99085.0,0.057479]
[1736157033716,0.09055238,99087.0,99086.0,0.050478]
[1736157034121,0.09055238,99087.0,99086.0,0.082378]
[1736157035019,0.09055238,99087.0,99086.0,0.084378]
[1736157035730,0.3608,99088.0,99087.0,0.050478]
[1736157037329,0.411277,99088.0,99087.0,0.052478]
[1736157037527,0.411277,99088.0,99087.0,0.055478]
[1736157044230,0.42148302,99088.0,99087.0,0.055478]
[1736157044432,0.411277,99088.0,99087.0,0.055478]
[1736157045527,0.3608,99088.0,99087.0,0.055478]
[1736157054134,0.1208039,99090.0,99087.0,0.005]
[1736157054437,0.3608,99088.0,99087.0,0.055478]
[1736157055332,0.3608,99088.0,99087.0,0.053478]
[1736157055527,0.3608,99088.0,99087.0,0.055478]
[1736157056941,0.3608,99088.0,99087.0,0.3581344]
[1736157061233,0.3608,99088.0,99087.0,0.055478]
[1736157065447,0.4816039,99088.0,99087.0,0.055478]
[1736157068940,0.5320809,99088.0,99087.0,0.055478]
[1736157069350,0.5320809,99088.0,99087.0,0.005]
[1736157070058,0.5320809,99088.0,99085.0,0.3026564]
[1736157070249,0.050486,99072.0,99071.0,0.36259775]
[1736157070438,0.411286,99072.0,99071.0,0.37838038]
[1736157071452,0.411286,99072.0,99071.0,0.01578263]
[1736157071648,0.411286,99072.0,99071.0,0.01778263]
[1736157073546,0.411286,99072.0,99071.0,0.01678263]
[1736157073753,0.412286,99072.0,99071.0,0.01678263]
[1736157078449,0.412286,99072.0,99071.0,0.06726863]
[1736157079058,0.412286,99072.0,99071.0,0.35726863]
[1736157080158,0.412286,99072.0,99071.0,0.06726863]
[1736157081050,0.3618,99072.0,99071.0,0.06726863]
[1736157082462,0.3618,99072.0,99071.0,0.051486]
[1736157084252,0.412286,99072.0,99071.0,0.001]
[1736157084456,0.412286,99072.0,99071.0,0.051486]
[1736157084761,0.412286,99072.0,99071.0,0.06726903]
[1736157085351,0.412286,99072.0,99071.0,0.01678303]
[1736157085754,0.412286,99072.0,99071.0,0.06726903]
[1736157087455,0.412286,99072.0,99071.0,0.06726933]
[1736157088561,0.412286,99072.0,99071.0,0.01678333]
[1736157091554,0.411286,99072.0,99071.0,0.01678333]
[1736157091952,0.412286,99072.0,99071.0,0.01578333]
[1736157092659,0.411286,99072.0,99071.0,0.01778333]
[1736157092850,0.050488,99068.0,99067.0,0.00151393]
[1736157094455,0.050488,99068.0,99067.0,0.00251393]
[1736157094853,0.050488,99068.0,99067.0,0.00651393]
[1736157097160,0.050488,99068.0,99067.0,0.005]
[1736157097362,0.050493,99058.0,99057.0,0.23197756]
[1736157097565,0.411293,99058.0,99057.0,0.23197756]
[1736157099465,0.412293,99058.0,99057.0,0.23197756]
[1736157099765,0.412293,99058.0,99057.0,0.050493]
[1736157099969,0.412293,99058.0,99051.0,0.24197941]
[1736157100157,0.050496,99054.0,99053.0,0.050495]
[1736157100961,0.050496,99054.0,99053.0,0.29247441]
[1736157101158,0.050496,99054.0,99053.0,0.24197941]
[1736157102457,0.050495,99053.0,99052.0,0.18155607]
[1736157104267,0.050495,99053.0,99052.0,0.002]
[1736157105267,0.050495,99053.0,99052.0,0.01778732]
[1736157105469,0.17114896,99053.0,99052.0,0.01778732]
[1736157106671,0.17114896,99053.0,99052.0,0.002]
[1736157106860,0.050495,99053.0,99052.0,0.01778732]
[1736157111674,0.050495,99053.0,99052.0,0.01578732]
[1736157111877,0.054495,99053.0,99052.0,0.01578732]
[1736157113277,0.054495,99053.0,99047.0,0.050498]
[1736157113278,0.050498,99048.0,99047.0,0.050498]
[1736157113468,0.411298,99048.0,99047.0,0.050498]
[1736157113667,0.411298,99048.0,99047.0,0.01578732]
[1736157114069,0.711298,99048.0,99047.0,3.2e-07]
[1736157114275,0.050511,99022.0,99021.0,0.36319775]
[1736157114575,0.7216,99022.0,98999.0,0.0325]
[1736157114877,0.050522,99001.0,98999.0,0.0325]
[1736157115285,0.050522,99001.0,98998.0,0.42303071]
[1736157116874,0.050522,99001.0,98991.0,0.0006]
[1736157117077,0.050522,99001.0,98989.0,0.050528]
[1736157117275,0.050522,99001.0,98998.0,0.050523]
[1736157117869,0.050522,99001.0,98983.0,0.050531]
[1736157118075,0.050522,99001.0,98990.0,0.09804413]
[1736157118275,0.050522,99001.0,99000.0,0.102]
[1736157118276,0.051522,99001.0,99000.0,0.102]
[1736157118780,0.001,99001.0,99000.0,0.152522]
[1736157118976,0.051522,99001.0,99000.0,0.152522]
[1736157119483,0.051522,99001.0,99000.0,0.442522]
[1736157119778,0.051522,99001.0,99000.0,0.102]
[1736157121377,0.3608,99012.0,99003.0,0.050521]
[1736157121568,0.04014927,99011.0,99010.0,0.050517]
[1736157121774,0.050513,99019.0,99018.0,0.050513]
[1736157122183,0.15175377,99021.0,99020.0,0.050512]
[1736157122378,0.15123376,99021.0,99020.0,0.050512]
[1736157122974,0.05051,99025.0,99024.0,0.05051]
[1736157124372,0.05051,99025.0,99024.0,0.05351]
[1736157133681,0.41131,99025.0,99024.0,0.05351]
[1736157133986,0.3608,99025.0,99024.0,0.05351]
[1736157135188,0.050507,99029.0,99024.0,0.05351]
[1736157135382,0.48081687,99037.0,99025.0,0.0326]
[1736157135588,0.050505,99035.0,99034.0,0.050504]
[1736157137392,0.3608,99037.0,99036.0,0.050504]
[1736157137582,0.3628,99037.0,99036.0,0.050504]
[1736157138092,0.3608,99037.0,99036.0,0.050504]
[1736157138487,0.411303,99037.0,99036.0,0.050504]
[1736157138891,0.411303,99037.0,99036.0,0.051504]
[1736157142690,0.3608,99037.0,99036.0,0.051504]
[1736157146794,0.050503,99038.0,99037.0,0.050503]
[1736157147292,0.3608,99039.0,99038.0,0.050503]
[1736157149992,0.48081687,99039.0,99038.0,0.050503]
[1736157150200,0.53131887,99039.0,99038.0,0.050503]
[1736157151293,0.53131887,99039.0,99032.0,0.050506]
[1736157151294,0.050505,99033.0,99032.0,0.050506]
[1736157153693,0.050505,99033.0,99032.0,0.053506]
[1736157155802,0.050505,99033.0,99032.0,0.003]
[1736157156401,0.0996235,99033.0,99032.0,0.003]
[1736157157396,0.050506,99031.0,99030.0,0.050507]
[1736157157594,0.411306,99031.0,99030.0,0.050507]
[1736157158694,0.4604245,99031.0,99030.0,0.050507]
[1736157159293,0.4604245,99031.0,99030.0,0.052507]
[1736157160097,0.411306,99031.0,99030.0,0.052507]
[1736157161803,0.050506,99031.0,99030.0,0.052507]
[1736157162211,0.20138388,99031.0,99030.0,0.052507]
[1736157163307,0.56218388,99031.0,99030.0,0.052507]
[1736157163607,0.411306,99031.0,99030.0,0.052507]
[1736157164511,0.56218388,99031.0,99030.0,0.052507]
[1736157165808,0.411306,99031.0,99030.0,0.052507]
[1736157166311,0.411306,99031.0,99030.0,0.06242947]
[1736157167911,0.411306,99031.0,99030.0,0.052507]
[1736157169503,0.56224113,99031.0,99030.0,0.052507]
[1736157174817,0.56224113,99031.0,99030.0,0.002]
[1736157176415,0.64145254,99031.0,99030.0,0.002]
[1736157177222,0.64145254,99031.0,99030.0,0.052507]
[1736157178116,0.46042661,99031.0,99030.0,0.052507]
[1736157180717,0.46042661,99031.0,99030.0,0.002]
[1736157184114,0.46042661,99031.0,99022.0,0.050511]
[1736157184322,0.46042661,99031.0,99030.0,0.002]
[1736157184923,0.46042661,99031.0,99030.0,0.001]
[1736157191926,0.46042661,99031.0,99024.0,0.05051]
[1736157192124,0.050509,99025.0,99024.0,0.05051]
[1736157194137,0.09962961,99025.0,99024.0,0.05692454]
[1736157194531,0.09962961,99025.0,99024.0,0.05892454]
[1736157196825,0.09962961,99025.0,99024.0,0.05251]
[1736157198122,0.09962961,99025.0,99024.0,0.002]
[1736157203141,0.46042961,99025.0,99024.0,0.002]
[1736157203335,0.46042961,99025.0,99024.0,0.01779169]
[1736157206839,0.46042961,99025.0,99024.0,0.06830169]
[1736157207341,0.46042961,99025.0,99024.0,0.05251]
[1736157219148,0.04912061,99025.0,99024.0,0.05251]
[1736157219651,0.04912061,99025.0,99024.0,0.34251]
[1736157220057,0.3608,99033.0,99025.0,0.050509]
[1736157220058,0.1509373,99026.0,99025.0,0.050509]
[1736157220256,0.1509373,99026.0,99025.0,0.082709]
[1736157221053,0.050502,99041.0,99025.0,0.082709]
[1736157221054,0.12066269,99033.0,99025.0,0.082709]
[1736157221251,0.12066269,99033.0,99032.0,0.050506]
[1736157222356,0.1509373,99038.0,99037.0,0.050503]
[1736157223762,0.1509373,99041.0,99033.0,0.050505]
[1736157223962,0.1509373,99041.0,99040.0,0.050502]
[1736157224859,0.1509373,99044.0,99043.0,0.0505]
[1736157225156,0.050507,99031.0,99027.0,0.24215616]
[1736157225359,0.050508,99028.0,99027.0,0.24215616]
[1736157225861,0.050508,99028.0,99027.0,0.29266416]
[1736157226660,0.050508,99028.0,99027.0,0.050508]
[1736157227060,0.050508,99028.0,99027.0,0.051508]
[1736157227461,0.0651,99030.0,99029.0,0.050507]
[1736157228765,0.0651,99030.0,99029.0,0.052507]
[1736157228966,0.115607,99030.0,99029.0,0.052507]
[1736157229965,0.0651,99030.0,99029.0,0.052507]
[1736157230270,0.0651,99030.0,99029.0,0.053507]
[1736157230466,0.0651,99030.0,99029.0,0.054507]
[1736157230966,0.0651,99030.0,99029.0,0.053507]
[1736157231157,0.0651,99030.0,99029.0,0.054507]
[1736157231358,0.050505,99034.0,99029.0,0.054507]
[1736157231563,0.3608,99035.0,99034.0,0.050505]
[1736157234272,0.3608,99035.0,99034.0,0.051505]
[1736157234766,0.3608,99035.0,99034.0,0.052505]
[1736157235670,0.1509373,99039.0,99038.0,0.050503]
[1736157236470,0.050502,99040.0,99034.0,0.052505]
[1736157236665,0.050502,99040.0,99039.0,0.050502]
[1736157238065,0.052502,99040.0,99039.0,0.050502]
[1736157238660,0.002,99040.0,99039.0,0.050502]
[1736157239970,0.12257726,99040.0,99039.0,0.050502]
[1736157240371,0.12257726,99040.0,99039.0,0.05836539]
[1736157242669,0.002,99040.0,99039.0,0.05836539]
[1736157243489,0.002,99040.0,99039.0,0.34836539]
[1736157244174,0.002,99040.0,99039.0,0.05836539]
[1736157256884,0.12261181,99040.0,99039.0,0.05836539]
[1736157257481,0.12261181,99040.0,99039.0,0.34836539]
[1736157258189,0.002,99040.0,99039.0,0.34836539]
[1736157262197,0.002,99040.0,99039.0,0.05836539]
[1736157265286,0.002,99040.0,99039.0,0.70916539]
[1736157265593,0.050492,99060.0,99050.0,0.050497]
[1736157265788,0.114092,99060.0,99050.0,0.050497]
[1736157266091,0.050492,99059.0,99050.0,0.050497]
[1736157266286,0.36132001,99057.0,99050.0,0.050497]
[1736157266598,0.3608,99057.0,99050.0,0.050497]
[1736157266891,0.05262071,99051.0,99050.0,0.050497]
[1736157267192,0.05862071,99051.0,99050.0,0.050497]
[1736157268188,0.05262071,99051.0,99050.0,0.050497]
[1736157268390,0.00851496,99051.0,99050.0,0.050497]
[1736157268894,0.00251496,99051.0,99050.0,0.050497]
[1736157269091,0.00751496,99051.0,99050.0,0.050497]
[1736157269889,0.00751496,99051.0,99050.0,0.23219039]
[1736157270486,0.006,99051.0,99050.0,0.23219039]
[1736157270792,0.006,99051.0,99050.0,0.23984599]
[1736157271295,0.006,99051.0,99050.0,0.0581526]
[1736157271689,0.005,99051.0,99050.0,0.0581526]
[1736157271893,0.004,99051.0,99050.0,0.0581526]
[1736157272086,0.005,99051.0,99050.0,0.3481526]
[1736157273188,0.12568113,99051.0,99050.0,0.3481526]
[1736157273383,0.12568113,99051.0,99050.0,0.0581526]
[1736157274588,0.005,99051.0,99050.0,0.0581526]
[1736157275287,0.055496,99051.0,99050.0,0.050497]
[1736157275492,0.055496,99051.0,99048.0,0.18158556]
[1736157275493,0.01265636,99051.0,99048.0,0.13168556]
[1736157275694,0.411297,99049.0,99048.0,0.13168556]
[1736157275889,0.3608,99049.0,99044.0,0.29265616]
[1736157276098,0.050499,99045.0,99044.0,0.29265616]
[1736157277200,0.050499,99045.0,99044.0,0.0505]
[1736157277889,0.052499,99045.0,99044.0,0.0505]
[1736157294515,0.052499,99045.0,99032.0,0.0037]
[1736157294516,0.3628,99045.0,99032.0,0.0037]
[1736157294819,0.050506,99031.0,99030.0,0.24367068]
[1736157295416,0.050506,99031.0,99030.0,0.00151452]
[1736157296926,0.46042316,99031.0,99030.0,0.00151452]
[1736157297328,0.46042316,99031.0,99030.0,0.00251452]
[1736157297722,0.46042316,99031.0,99030.0,0.00451452]
[1736157300020,0.56181315,99031.0,99030.0,0.00451452]
[1736157306122,0.46042873,99031.0,99030.0,0.00451452]
[1736157308731,0.56179326,99031.0,99030.0,0.00451452]
[1736157310930,0.411306,99031.0,99030.0,0.00451452]
[1736157312133,0.46042913,99031.0,99030.0,0.00451452]
[1736157313029,0.411306,99031.0,99030.0,0.00451452]
[1736157313530,0.5618006,99031.0,99030.0,0.00451452]
[1736157316527,0.411306,99031.0,99030.0,0.00451452]
[1736157318041,0.46042807,99031.0,99030.0,0.00451452]
[1736157318425,0.46042807,99031.0,99030.0,0.05502152]
[1736157318731,0.46042807,99031.0,99030.0,0.00451452]
[1736157319331,0.46042807,99031.0,99030.0,0.05502152]
[1736157319523,0.411306,99031.0,99030.0,0.05502152]
[1736157330741,0.411306,99031.0,99030.0,0.00451452]
[1736157332151,0.46042652,99031.0,99030.0,0.00451452]
[1736157334346,0.050515,99015.0,99014.0,0.24215616]
[1736157334646,0.411315,99015.0,99014.0,0.24215616]
[1736157335242,0.3608,99015.0,99009.0,0.050518]
[1736157335549,0.050517,99010.0,99009.0,0.050518]
[1736157336552,0.17108302,99010.0,99009.0,0.050518]
[1736157337144,0.17108302,99010.0,99009.0,0.052518]
[1736157339254,0.050517,99010.0,99009.0,0.052518]
[1736157340950,0.050517,99010.0,99009.0,0.342518]
[1736157342550,0.12056602,99013.0,99012.0,0.050516]
[1736157343949,0.050515,99014.0,99012.0,0.001]
[1736157344145,0.050515,99014.0,99013.0,0.050516]
[1736157346660,0.17208102,99014.0,99013.0,0.050516]
[1736157346855,0.17208102,99014.0,99013.0,0.051516]
[1736157348463,0.12156602,99014.0,99013.0,0.051516]
[1736157349563,0.001,99014.0,99013.0,0.051516]
[1736157351261,0.001,99014.0,99013.0,0.412316]
[1736157351556,0.12056602,99017.0,99016.0,0.050514]
[1736157352061,0.12056602,99020.0,99019.0,0.050513]
[1736157353269,0.12056602,99022.0,99019.0,0.050513]
[1736157353562,0.12056602,99022.0,99021.0,0.050512]
[1736157354364,0.12256602,99022.0,99021.0,0.050512]
[1736157354664,0.09240758,99022.0,99021.0,0.050512]
[1736157354860,0.09440758,99022.0,99021.0,0.050512]
[1736157356066,0.09540758,99022.0,99021.0,0.050512]
[1736157356360,0.005,99022.0,99021.0,0.050512]
[1736157358068,0.09540758,99022.0,99021.0,0.050512]
[1736157359160,0.005,99022.0,99021.0,0.050512]
[1736157363574,0.3658,99022.0,99021.0,0.050512]
[1736157363770,0.416311,99022.0,99021.0,0.050512]
[1736157368281,0.055511,99022.0,99021.0,0.050512]
[1736157369680,0.416311,99022.0,99021.0,0.050512]
[1736157384289,0.055511,99022.0,99021.0,0.050512]
[1736157392891,0.2062451,99022.0,99021.0,0.050512]
[1736157396001,0.055511,99022.0,99021.0,0.050512]
[1736157397497,0.2062451,99022.0,99021.0,0.050512]
[1736157402007,0.055511,99022.0,99021.0,0.050512]
[1736157403105,0.2062451,99022.0,99021.0,0.050512]
[1736157403999,0.055511,99022.0,99021.0,0.050512]
[1736157410505,0.005,99022.0,99021.0,0.050512]
[1736157410909,0.005,99022.0,99021.0,0.083512]
[1736157411705,0.005,99022.0,99021.0,0.116012]
[1736157416313,0.005,99022.0,99021.0,0.35816816]
[1736157417910,0.005,99022.0,99021.0,0.116012]
[1736157418410,0.055511,99022.0,99021.0,0.116012]
[1736157424612,0.055511,99022.0,99021.0,0.083512]
[1736157428316,0.005,99022.0,99021.0,0.083512]
[1736157429315,0.055511,99022.0,99021.0,0.033]
[1736157444019,0.055511,99022.0,99021.0,0.323]
[1736157447831,0.055511,99022.0,99021.0,0.033]
[1736157448020,0.055511,99022.0,99018.0,0.29266916]
[1736157448330,0.050513,99019.0,99018.0,0.29266916]
[1736157450121,0.051513,99019.0,99018.0,0.29266916]
[1736157453427,0.052513,99019.0,99018.0,0.58266916]
[1736157453733,0.052513,99019.0,99018.0,0.340513]
[1736157460630,0.052513,99019.0,99018.0,0.050513]
[1736157474955,0.002,99019.0,99018.0,0.050513]
[1736157478953,0.0307,99037.0,99036.0,0.050504]
[1736157479153,0.050503,99038.0,99037.0,0.050502]
[1736157480351,0.052503,99038.0,99037.0,0.050502]
[1736157481260,0.053503,99038.0,99037.0,0.050502]
[1736157488669,0.053503,99038.0,99037.0,0.23206099]
[1736157491367,0.17412814,99038.0,99037.0,0.050502]
[1736157493165,0.050505,99034.0,99033.0,0.23206399]
[1736157493762,0.050505,99034.0,99033.0,0.050505]
[1736157495468,0.082305,99034.0,99033.0,0.050505]
[1736157496264,0.082305,99034.0,99033.0,0.053505]
[1736157496764,0.082305,99034.0,99033.0,0.054505]
[1736157497371,0.082305,99034.0,99033.0,0.004]
[1736157503266,0.082305,99034.0,99033.0,0.054505]
[1736157503666,0.050505,99034.0,99033.0,0.054505]
[1736157506568,0.050504,99039.0,99038.0,0.050502]
[1736157508572,0.050504,99039.0,99038.0,0.051502]
[1736157508874,0.050504,99039.0,99038.0,0.23321188]
[1736157509778,0.09961982,99039.0,99038.0,0.051502]
[1736157510178,0.09961982,99039.0,99038.0,0.001]
[1736157510371,0.09961982,99039.0,99038.0,0.051503]
[1736157515581,0.09961982,99039.0,99038.0,0.23321288]
[1736157517880,0.09961982,99039.0,99038.0,0.051503]
[1736157525694,0.09961982,99039.0,99038.0,0.06123277]
[1736157526088,0.050504,99039.0,99038.0,0.06123277]
[1736157527593,0.20148834,99039.0,99038.0,0.24302823]
[1736157528692,0.050504,99039.0,99038.0,0.06123277]
[1736157531499,0.20148834,99039.0,99038.0,0.06123277]
[1736157532996,0.20148834,99039.0,99038.0,0.24300736]
[1736157534393,0.09961823,99039.0,99038.0,0.06123277]
[1736157535398,0.050504,99039.0,99038.0,0.06123277]
[1736157537296,0.20143995,99039.0,99038.0,0.06123277]
[1736157541506,0.20143995,99039.0,99038.0,0.24300736]
[1736157542910,0.20143995,99039.0,99038.0,0.06123277]
[1736157544105,0.20143995,99039.0,99038.0,0.24300736]
[1736157546706,0.20143995,99039.0,99038.0,0.06123277]
[1736157547008,0.050504,99039.0,99038.0,0.06123277]
[1736157550513,0.15093595,99041.0,99038.0,0.06123277]
[1736157550706,0.20143795,99041.0,99040.0,0.050502]
[1736157551016,0.050502,99041.0,99040.0,0.050502]
[1736157552417,0.09961512,99041.0,99040.0,0.050502]
[1736157553115,0.04911312,99041.0,99040.0,0.050502]
[1736157554922,0.20009897,99041.0,99040.0,0.050502]
[1736157555224,0.15098585,99041.0,99040.0,0.050502]
[1736157556722,0.15098585,99041.0,99040.0,0.23231531]
[1736157562429,0.15098585,99041.0,99040.0,0.050502]
[1736157564219,0.20148685,99041.0,99040.0,0.050502]
[1736157567720,0.050501,99041.0,99040.0,0.050502]
[1736157569315,0.20148685,99041.0,99040.0,0.050502]
[1736157574834,0.050501,99041.0,99040.0,0.050502]
[1736157583238,0.20148685,99041.0,99040.0,0.050502]